bitfinex-derivatives/quotes_ETHF0:USTF0_20240817
["timestamp","ask_amount","ask_price","bid_price","bid_amount"]
[1723887599807,7.28107668,2605.8,2605.7,0.00951996]
[1723887600008,7.28107668,2605.8,2605.6,0.3475]
[1723887600009,1.43886,2605.7,2605.6,0.3475]
[1723887600208,3.80143668,2605.7,2605.6,0.3475]
[1723887600411,4.1955,2605.7,2605.2,1.36148783]
[1723887600611,2.94721678,2605.4,2605.2,0.723]
[1723887600812,6.15501678,2605.4,2605.3,0.3464]
[1723887601009,6.15501678,2605.4,2605.3,0.95509827]
[1723887601415,4.64685,2605.4,2605.3,0.95509827]
[1723887601611,6.78561678,2605.4,2605.3,0.95509827]
[1723887601917,5.34656678,2605.4,2605.3,0.60868747]
[1723887602114,3.8384,2605.4,2605.3,0.60868747]
[1723887602311,5.27743,2605.4,2605.3,0.95508747]
[1723887602511,8.48523,2605.4,2605.3,0.95505424]
[1723887602714,7.0462,2605.4,2605.3,0.95505424]
[1723887603109,7.0462,2605.4,2605.3,1.30485424]
[1723887603412,3.2078,2605.4,2605.3,1.30485424]
[1723887603920,2.94711678,2605.6,2605.3,1.30485424]
[1723887604112,6.15491678,2605.6,2605.4,0.60427325]
[1723887604311,6.15491678,2605.6,2605.3,0.70058099]
[1723887604513,6.15491678,2605.6,2605.4,0.60412375]
[1723887604715,1.50816678,2605.5,2605.3,0.70058099]
[1723887605105,5.34656678,2605.5,2605.4,0.60412673]
[1723887605414,6.15491678,2605.6,2605.4,0.60412673]
[1723887605715,5.34656678,2605.5,2605.3,0.70058099]
[1723887605916,2.94714678,2605.5,2605.3,0.70058099]
[1723887606217,5.34656678,2605.5,2605.4,0.60399388]
[1723887607611,3.8384,2605.5,2605.4,0.60399388]
[1723887608116,4.71596678,2605.6,2605.4,0.60399388]
[1723887608323,1.43898,2605.5,2605.3,0.35078099]
[1723887608518,2.94719678,2605.5,2605.4,0.60399803]
[1723887608720,2.94719678,2605.5,2605.3,0.71908099]
[1723887609107,2.94719678,2605.5,2605.4,0.60402186]
[1723887609417,2.94719678,2605.5,2605.3,0.71908099]
[1723887611518,4.71596678,2605.6,2605.4,0.60400761]
[1723887611819,4.71596678,2605.6,2605.3,0.71908099]
[1723887612017,1.105,2605.5,2605.4,0.60401369]
[1723887612519,1.105,2605.5,2605.4,0.60401812]
[1723887616318,1.105,2605.5,2605.4,0.60398273]
[1723887616831,1.105,2605.5,2605.4,0.60397513]
[1723887617126,4.3128,2605.5,2605.4,0.60397513]
[1723887618527,1.105,2605.5,2605.4,0.60397513]
[1723887618724,4.9434,2605.5,2605.4,0.60397513]
[1723887618925,9.65936678,2605.5,2605.3,0.71908099]
[1723887619120,5.75179,2605.5,2605.3,0.35078099]
[1723887619425,1.50816678,2605.4,2605.3,0.35078099]
[1723887619922,2.94720678,2605.4,2605.3,0.35078099]
[1723887621919,4.71596678,2605.5,2605.3,0.35078099]
[1723887622119,1.50816678,2605.6,2605.4,0.342]
[1723887624228,2.54398,2605.5,2605.3,0.35078099]
[1723887624423,7.25994678,2605.5,2605.3,0.35078099]
[1723887624930,2.94720678,2605.4,2605.3,0.35078099]
[1723887625123,1.43904,2605.4,2605.3,0.35078099]
[1723887625428,1.43914,2605.2,2605.1,0.00576048]
[1723887625625,4.64694,2605.2,2605.1,0.00576048]
[1723887625831,7.0462,2605.2,2605.1,0.00576048]
[1723887626126,9.65865604,2605.2,2605.1,0.00576048]
[1723887626330,9.65865604,2605.2,2605.1,0.00997943]
[1723887626833,9.65862127,2605.2,2605.1,0.00997943]
[1723887627223,11.09776127,2605.2,2605.1,0.00997943]
[1723887629530,9.59034,2605.2,2605.1,0.00997943]
[1723887629929,8.48534,2605.2,2605.1,0.00997943]
[1723887630229,11.09726101,2605.2,2605.1,0.00997943]
[1723887632832,11.09679462,2605.2,2605.1,0.00997943]
[1723887633432,7.25839462,2605.2,2605.1,0.00997943]
[1723887633835,6.15339462,2605.2,2605.1,0.00997943]
[1723887634138,7.25839462,2605.2,2605.1,0.00997943]
[1723887636439,7.25796816,2605.2,2605.1,0.00997943]
[1723887636832,7.25796816,2605.2,2604.4,2.4662534]
[1723887636833,14.59034,2605.2,2604.4,1.00098783]
[1723887637031,3.2078,2604.8,2604.6,0.3614]
[1723887637236,3.2078,2604.8,2604.7,0.343]
[1723887637739,7.047,2604.8,2604.7,0.343]
[1723887637936,7.047,2604.8,2604.7,0.34732179]
[1723887638334,8.152,2604.8,2604.7,0.34732179]
[1723887638533,9.59136,2604.8,2604.7,0.34732179]
[1723887639933,6.38356,2604.8,2604.7,0.34732179]
[1723887642941,6.38356,2604.8,2604.7,0.00432179]
[1723887643245,1.43947,2604.6,2604.5,0.00576048]
[1723887643446,7.2581041,2604.6,2604.5,0.00576048]
[1723887643634,14.59147,2604.6,2604.5,0.00576048]
[1723887643839,16.09734445,2604.6,2604.5,0.00576048]
[1723887644037,11.09734445,2604.6,2604.5,0.00859883]
[1723887644850,9.59147,2604.6,2604.5,0.00859883]
[1723887646043,5.75227,2604.6,2604.5,0.00859883]
[1723887647149,9.59147,2604.6,2604.5,0.00859883]
[1723887648046,11.09734445,2604.6,2604.5,0.00859883]
[1723887648638,9.59147,2604.6,2604.5,0.00859883]
[1723887649035,11.17594445,2604.6,2604.5,0.00859883]
[1723887649238,9.67007,2604.6,2604.5,0.00859883]
[1723887650246,9.59147,2604.6,2604.5,0.00859883]
[1723887653248,6.38367,2604.6,2604.5,0.00859883]
[1723887653448,3.8392,2604.6,2604.5,0.00859883]
[1723887653745,2.54447,2604.6,2604.5,0.00859883]
[1723887654049,6.38367,2604.6,2604.5,0.00859883]
[1723887655541,7.88954445,2604.6,2604.5,0.00859883]
[1723887655740,6.38367,2604.6,2604.5,0.00859883]
[1723887656942,6.38367,2604.6,2604.3,0.3481]
[1723887656943,1.43958,2604.4,2604.3,0.3481]
[1723887657251,5.75238,2604.4,2604.3,0.3481]
[1723887657443,9.59238,2604.4,2604.3,0.3481]
[1723887657945,9.59238,2604.4,2604.3,0.35250132]
[1723887668659,9.59238,2604.4,2604.3,0.00440132]
[1723887668660,11.09825445,2604.4,2604.3,0.00440132]
[1723887668859,1.43969,2604.2,2604.1,0.00576048]
[1723887669058,2.54469,2604.2,2604.1,0.00576048]
[1723887669363,7.88984789,2604.2,2604.1,0.00576048]
[1723887669758,7.89010219,2604.2,2604.1,0.00576048]
[1723887669959,7.89010219,2604.2,2604.1,0.01053146]
[1723887671044,6.38469,2604.2,2604.1,0.01053146]
[1723887671856,1.43985,2603.9,2603.8,0.7184]
[1723887672055,5.75265,2603.9,2603.8,0.7184]
[1723887672948,5.75559524,2603.9,2603.8,0.72187206]
[1723887673453,9.59639524,2603.9,2603.8,0.36007206]
[1723887673661,11.10204665,2603.9,2603.8,0.36007206]
[1723887673860,9.59639524,2603.9,2603.8,0.36007206]
[1723887674246,8.49139524,2603.9,2603.8,0.36007206]
[1723887674553,4.31574524,2603.9,2603.8,0.36007206]
[1723887675052,0.00294524,2603.9,2603.8,4.20087206]
[1723887675655,1.10794524,2603.9,2603.8,4.20087206]
[1723887676959,1.10794524,2603.9,2603.8,0.36007206]
[1723887684052,2.61359665,2603.9,2603.8,0.36007206]
[1723887684669,1.10794524,2603.9,2603.8,0.36007206]
[1723887687668,2.61359665,2603.9,2603.8,0.36007206]
[1723887687963,1.10794524,2603.9,2603.8,0.36007206]
[1723887688555,2.61359665,2603.9,2603.8,0.36007206]
[1723887694263,2.61359665,2603.9,2603.8,0.96483845]
[1723887694761,2.61359665,2603.9,2603.8,0.36007206]
[1723887695361,2.61359665,2603.9,2603.8,0.96484142]
[1723887695972,2.61359665,2603.9,2603.8,0.36007206]
[1723887696162,2.61359665,2603.9,2603.8,0.96504577]
[1723887696368,5.82139665,2603.9,2603.8,0.96504577]
[1723887697266,5.82139665,2603.9,2603.8,0.96506992]
[1723887697862,5.82139665,2603.9,2603.8,0.36007206]
[1723887698059,5.82139665,2603.9,2603.8,0.96504775]
[1723887698463,5.82139665,2603.9,2603.8,0.96505254]
[1723887699671,2.61359665,2603.9,2603.8,0.96505254]
[1723887700273,1.10794524,2603.9,2603.8,0.96505254]
[1723887701572,3.11806547,2603.9,2603.8,0.96505254]
[1723887702978,1.10794524,2603.9,2603.8,0.96505254]
[1723887705779,3.11806547,2603.9,2603.8,0.96505254]
[1723887706482,1.10794524,2603.9,2603.8,0.96505254]
[1723887706983,3.11806547,2603.9,2603.8,0.96503736]
[1723887707479,3.11806547,2603.9,2603.8,0.96504997]
[1723887709082,1.10794524,2603.9,2603.8,0.96504997]
[1723887710077,1.10794524,2603.9,2603.8,0.36007206]
[1723887710278,1.10794524,2603.9,2603.8,0.9650197]
[1723887710773,1.10794524,2603.9,2603.8,1.96600753]
[1723887710973,1.10794524,2603.9,2603.8,1.36105989]
[1723887711185,3.11806547,2603.9,2603.8,0.96501998]
[1723887711476,3.12198893,2603.9,2603.8,0.96501998]
[1723887711875,1.10794524,2603.9,2603.8,6.77238789]
[1723887712077,2.61846327,2603.9,2603.8,9.19318506]
[1723887712278,1.51042922,2604.1,2603.8,10.79874157]
[1723887712476,1.51042922,2604.2,2604.0,2.94559152]
[1723887712678,1.51042922,2604.2,2604.1,2.94863528]
[1723887713371,1.51375408,2604.2,2604.1,2.94863528]
[1723887713575,2.61840623,2604.2,2604.1,6.78863528]
[1723887713786,2.61840623,2604.2,2604.1,8.70864978]
[1723887713984,2.61840623,2604.2,2604.1,8.33434978]
[1723887714279,2.61840623,2604.2,2604.1,0.60494792]
[1723887714280,6.33016855,2604.2,2604.1,0.60494792]
[1723887714488,7.76985855,2604.2,2604.1,0.60494792]
[1723887714680,8.14295855,2604.2,2604.1,0.60494792]
[1723887715094,8.14295855,2604.2,2604.1,0.6048165]
[1723887716388,6.70326855,2604.2,2604.1,0.6048165]
[1723887719189,6.70326855,2604.2,2604.0,0.733]
[1723887719390,6.70326855,2604.2,2604.0,1.73680728]
[1723887719391,1.50992909,2604.1,2604.0,1.73680728]
[1723887719580,1.50992909,2604.1,2604.0,2.34161366]
[1723887719778,1.50992909,2604.1,2604.0,5.57680728]
[1723887719983,1.50992909,2604.1,2604.0,6.18159885]
[1723887720179,5.82605395,2604.2,2604.0,8.10161794]
[1723887720480,5.82605395,2604.2,2604.1,1.97379885]
[1723887721495,2.61825395,2604.2,2604.1,1.97379885]
[1723887722182,1.10832486,2604.2,2604.1,9.17349562]
[1723887722587,1.10832486,2604.2,2604.1,9.17350014]
[1723887724375,1.10832486,2604.2,2604.1,7.25353885]
[1723887725690,1.10832486,2604.2,2604.1,5.81379885]
[1723887725992,1.10832486,2604.2,2604.1,4.80999157]
[1723887726197,1.10832486,2604.2,2604.1,4.2052]
[1723887726391,1.10832486,2604.2,2604.1,4.80995595]
[1723887726787,1.10832486,2604.2,2604.1,4.8101259]
[1723887730289,1.10832486,2604.2,2604.1,4.2052]
[1723887730592,1.10832486,2604.2,2604.1,4.81015879]
[1723887730991,1.10832486,2604.2,2604.1,4.2052]
[1723887731183,1.10832486,2604.2,2604.1,4.810122]
[1723887732088,1.10832486,2604.2,2604.1,4.2052]
[1723887732297,1.10832486,2604.2,2604.1,4.81013026]
[1723887734292,1.10832486,2604.2,2604.1,0.97013026]
[1723887734696,1.10832486,2604.2,2604.1,4.2052]
[1723887734899,1.10832486,2604.2,2604.1,0.97012775]
[1723887735103,1.10832486,2604.2,2604.1,4.81012775]
[1723887735402,1.10832486,2604.2,2604.1,0.97012775]
[1723887735695,1.10832486,2604.2,2604.1,4.81012775]
[1723887736093,1.10832486,2604.2,2604.1,0.97012775]
[1723887736292,1.10832486,2604.2,2604.1,4.81012775]
[1723887736501,1.10832486,2604.2,2604.1,0.97012775]
[1723887736705,1.10832486,2604.2,2604.1,4.81012775]
[1723887737001,1.10832486,2604.2,2604.1,0.97012775]
[1723887738094,1.10832486,2604.2,2604.1,0.97005895]
[1723887738399,1.10832486,2604.2,2604.1,4.81005895]
[1723887738600,1.10832486,2604.2,2604.1,0.97005895]
[1723887738902,1.10832486,2604.2,2604.1,4.81005895]
[1723887739992,1.10832486,2604.2,2604.1,0.97005895]
[1723887740202,1.10832486,2604.2,2604.1,4.81005895]
[1723887742700,1.10832486,2604.2,2604.1,5.81386623]
[1723887742999,1.10832486,2604.2,2604.1,7.25355024]
[1723887743203,4.3128,2604.4,2604.2,1.43965]
[1723887743402,4.3128,2604.4,2604.3,0.95160296]
[1723887744309,4.31632557,2604.4,2604.3,0.95160296]
[1723887744604,4.31632557,2604.4,2604.3,0.95155188]
[1723887745999,1.10852557,2604.4,2604.3,0.95155188]
[1723887749305,1.10852557,2604.4,2604.3,6.23118188]
[1723887749898,1.10852557,2604.4,2604.3,4.79155188]
[1723887750497,5.82625466,2604.4,2604.3,0.95155188]
[1723887750802,5.82625466,2604.4,2604.3,0.3468]
[1723887751109,1.10852557,2604.4,2604.3,4.79159815]
[1723887751306,2.61845466,2604.4,2604.3,0.95159815]
[1723887751497,1.10852557,2604.4,2604.3,0.95159815]
[1723887751805,1.10852557,2604.4,2604.3,4.79159815]
[1723887752709,2.61845466,2604.4,2604.3,4.79159815]
[1723887752904,1.10852557,2604.4,2604.3,0.95159815]
[1723887753107,7.26582466,2604.4,2604.1,1.00380728]
[1723887753310,2.98842909,2604.3,2604.2,0.60483196]
[1723887753900,4.42805909,2604.3,2604.2,0.60483196]
[1723887754099,2.91813,2604.3,2604.2,0.60483196]
[1723887754404,2.91813,2604.3,2603.8,0.00347206]
[1723887754405,12.90325966,2604.3,2603.8,0.00347206]
[1723887754599,5.82238089,2603.9,2603.8,0.00347206]
[1723887754799,5.82238089,2603.9,2603.8,0.60854517]
[1723887755015,6.19588089,2603.9,2603.8,0.60854517]
[1723887755414,6.19575273,2603.9,2603.8,0.00347206]
[1723887755708,6.19585208,2603.9,2603.8,0.60858533]
[1723887756102,6.19585208,2603.9,2603.8,0.60856662]
[1723887756700,4.6863,2603.9,2603.8,0.60856662]
[1723887756913,6.19585806,2603.9,2603.8,0.60856662]
[1723887757414,4.6863,2603.9,2603.8,0.60856662]
[1723887757613,6.19590082,2603.9,2603.8,0.60856662]
[1723887759820,6.19590082,2603.9,2603.8,0.00347206]
[1723887760110,1.105,2603.9,2603.8,0.60857424]
[1723887760513,1.105,2603.9,2603.8,1.33547424]
[1723887760917,1.105,2603.9,2603.8,2.33928152]
[1723887761117,1.105,2603.9,2603.8,1.33547424]
[1723887761414,1.105,2603.9,2603.8,1.33542649]
[1723887764321,2.61460082,2603.9,2603.8,0.73037206]
[1723887764519,1.4579,2603.9,2603.8,1.33549466]
[1723887765114,1.4579,2603.9,2603.8,0.97919466]
[1723887765115,2.96750082,2603.9,2603.8,0.97919466]
[1723887765309,6.17530082,2603.9,2603.8,0.97919466]
[1723887765719,1.4579,2603.9,2603.8,0.9792181]
[1723887765921,2.96750082,2603.9,2603.8,0.97923138]
[1723887766117,2.96750082,2603.9,2603.8,0.97922998]
[1723887766315,6.17530082,2603.9,2603.8,0.00347206]
[1723887766616,6.25410082,2603.9,2603.8,0.00347206]
[1723887768815,4.7445,2603.9,2603.8,0.00347206]
[1723887770320,6.25272517,2603.9,2603.8,0.00347206]
[1723887770712,6.17378694,2603.9,2603.8,0.00347206]
[1723887772309,10.01458694,2603.9,2603.8,0.00347206]
[1723887777121,6.17378694,2603.9,2603.8,0.00347206]
[1723887777325,1.4579,2603.9,2603.8,0.00347206]
[1723887780423,4.6657,2603.9,2603.8,0.00347206]
[1723887781622,6.17378694,2603.9,2603.8,0.00347206]
[1723887781825,4.6657,2603.9,2603.8,0.00347206]
[1723887782717,6.17378694,2603.9,2603.8,0.00347206]
[1723887782927,6.10555,2603.9,2603.8,0.00347206]
[1723887783330,7.61363694,2603.9,2603.8,0.00347206]
[1723887783533,6.10555,2603.9,2603.8,0.00347206]
[1723887784219,7.61363694,2603.9,2603.8,0.00347206]
[1723887784624,6.10555,2603.9,2603.8,0.00347206]
[1723887786228,7.61363694,2603.9,2603.8,0.00347206]
[1723887788622,1.43996,2603.7,2603.6,0.37514032]
[1723887788825,6.38576,2603.7,2603.6,0.37514032]
[1723887789028,7.89337803,2603.7,2603.6,0.37514032]
[1723887789633,7.89337803,2603.7,2603.6,0.37830746]
[1723887790333,7.89337803,2603.7,2603.6,0.00700746]
[1723887790531,6.38576,2603.7,2603.6,0.00700746]
[1723887790939,8.47713452,2603.7,2603.6,0.00700746]
[1723887791339,6.46436,2603.7,2603.6,0.00700746]
[1723887792544,8.47713452,2603.7,2603.6,0.00700746]
[1723887792835,6.46436,2603.7,2603.6,0.00700746]
[1723887793338,6.38576,2603.7,2603.6,0.00700746]
[1723887794136,8.39853452,2603.7,2603.6,0.00700746]
[1723887794334,6.38576,2603.7,2603.6,0.00700746]
[1723887794539,8.39853452,2603.7,2603.6,0.00700746]
[1723887796034,6.38576,2603.7,2603.6,0.00700746]
[1723887796244,7.89403334,2603.7,2603.6,0.00700746]
[1723887796541,6.38576,2603.7,2603.6,0.00700746]
[1723887797541,8.39853452,2603.7,2603.6,0.00700746]
[1723887798235,11.60633452,2603.7,2603.6,0.00700746]
[1723887800030,9.59356,2603.7,2603.6,0.00700746]
[1723887800431,11.60633998,2603.7,2603.6,0.00700746]
[1723887802342,9.59356,2603.7,2603.6,0.00700746]
[1723887802531,1.44007,2603.5,2603.4,0.3654]
[1723887802738,2.54507,2603.5,2603.4,0.3654]
[1723887802938,4.55790118,2603.5,2603.4,0.3654]
[1723887803140,2.90037,2603.5,2603.4,0.3654]
[1723887803541,4.91294717,2603.5,2603.4,0.36996731]
[1723887803745,2.90037,2603.5,2603.4,0.36996731]
[1723887803942,5.40642966,2603.5,2603.4,0.36996731]
[1723887805641,7.80715966,2603.5,2603.0,0.3584]
[1723887805943,1.50905803,2603.2,2603.1,0.7128]
[1723887806149,4.71685803,2603.2,2603.1,0.7128]
[1723887806451,8.48964,2603.2,2603.1,0.3429]
[1723887806646,8.48964,2603.2,2603.1,0.34629945]
[1723887806647,10.50171737,2603.2,2603.1,0.34629945]
[1723887807052,11.60671737,2603.2,2603.1,0.34629945]
[1723887807651,9.59464,2603.2,2603.1,0.34629945]
[1723887808053,11.60671737,2603.2,2603.1,0.34629945]
[1723887808252,9.59464,2603.2,2603.1,0.34629945]
[1723887809049,12.10069966,2603.2,2602.4,1.00380728]
[1723887809347,12.10069966,2603.2,2602.8,0.347]
[1723887809348,2.0112397,2603.0,2602.8,0.347]
[1723887809550,4.71567596,2602.9,2602.8,0.347]
[1723887809744,3.2078,2602.9,2602.8,0.347]
[1723887809943,4.71567596,2602.9,2602.8,0.347]
[1723887810147,4.71567596,2602.9,2602.8,0.3519089]
[1723887810449,3.2078,2602.9,2602.8,0.3519089]
[1723887810643,4.3128,2602.9,2602.8,0.3519089]
[1723887811152,7.26107596,2602.9,2602.8,0.3519089]
[1723887811958,11.10267596,2602.9,2602.8,0.3519089]
[1723887812348,7.26107596,2602.9,2602.8,0.3519089]
[1723887813645,11.10267596,2602.9,2602.8,0.3519089]
[1723887815553,9.5948,2602.9,2602.8,0.3519089]
[1723887817054,5.7532,2602.9,2602.8,0.3519089]
[1723887817355,9.5948,2602.9,2602.8,0.3519089]
[1723887817752,9.5948,2602.9,2602.8,0.0049089]
[1723887817954,1.44055,2602.7,2602.4,0.7285]
[1723887818153,4.3128,2602.5,2602.4,0.3582]
[1723887818755,3.2078,2602.5,2602.4,0.3582]
[1723887818955,4.31687356,2602.5,2602.4,0.36267395]
[1723887820261,1.10907356,2602.5,2602.4,0.36267395]
[1723887829650,4.31687356,2602.5,2602.4,0.36267395]
[1723887837972,1.10907356,2602.5,2602.4,0.36267395]
[1723887838169,4.31687356,2602.5,2602.4,0.36267395]
[1723887839374,5.75750356,2602.5,2602.4,0.36267395]
[1723887840369,1.44094,2602.0,2601.6,0.60640309]
[1723887840670,4.64874,2602.0,2601.7,0.3749]
[1723887840865,1.44101,2601.8,2601.7,0.3749]
[1723887841266,3.8432,2601.8,2601.7,0.00443544]
[1723887841568,3.8432,2601.8,2601.2,0.3558]
[1723887841769,3.8432,2601.8,2601.2,0.7013]
[1723887841770,1.105,2601.3,2601.2,0.7013]
[1723887842367,1.105,2601.3,2601.2,0.70415476]
[1723887842576,3.2078,2601.5,2601.2,0.70415476]
[1723887842767,1.105,2601.3,2601.2,2.14550476]
[1723887842964,5.39371248,2601.9,2601.3,5.28525]
[1723887842965,7.09555671,2601.9,2601.3,5.28525]
[1723887843163,7.09555671,2601.9,2601.4,0.3648]
[1723887843873,8.53651671,2601.9,2601.4,0.3648]
[1723887844168,8.53652671,2601.9,2601.4,0.3648]
[1723887844362,3.2078,2601.6,2601.4,0.3648]
[1723887844563,1.105,2601.5,2601.4,0.3648]
[1723887846367,1.105,2601.5,2601.4,4.2088]
[1723887846964,1.105,2601.5,2601.4,0.3648]
[1723887847171,1.105,2601.5,2601.2,0.70415476]
[1723887847370,3.2078,2601.6,2601.3,0.3627]
[1723887850463,1.105,2601.4,2601.3,0.3627]
[1723887851172,1.105,2601.4,2601.3,4.2067]
[1723887852268,1.105,2601.4,2601.3,0.3627]
[1723887853370,1.105,2601.4,2601.2,0.70415476]
[1723887860985,3.2078,2601.3,2601.2,0.70415476]
[1723887864485,1.105,2601.4,2601.2,0.70415476]
[1723887864782,4.3128,2601.4,2601.2,0.70415476]
[1723887867683,1.105,2601.4,2601.2,0.70415476]
[1723887868387,4.3128,2601.4,2601.2,0.70415476]
[1723887873083,4.3128,2601.4,2601.2,2.14548476]
[1723887873394,1.105,2601.4,2601.2,2.14548476]
[1723887874082,1.105,2601.4,2601.2,0.70415476]
[1723887877387,1.105,2601.4,2601.2,2.14549476]
[1723887877685,1.105,2601.4,2601.2,0.70415476]
[1723887882580,1.105,2601.4,2601.3,0.60699729]
[1723887882993,1.105,2601.4,2601.2,0.70415476]
[1723887883494,1.105,2601.4,2601.3,0.60699841]
[1723887883883,1.105,2601.4,2601.2,1.70796204]
[1723887884097,1.105,2601.4,2601.3,0.60699144]
[1723887884393,1.105,2601.4,2601.3,1.61079872]
[1723887885592,1.105,2601.4,2601.3,4.0349979]
[1723887885593,2.61095577,2601.4,2601.3,4.0349979]
[1723887886792,2.61095577,2601.4,2601.3,4.03494602]
[1723887891291,2.61095577,2601.4,2601.3,4.03498208]
[1723887891500,2.61095577,2601.4,2601.3,4.03498679]
[1723887891894,1.105,2601.4,2601.3,4.03498679]
[1723887892097,1.105,2601.4,2601.3,3.42799064]
[1723887892293,1.105,2601.4,2601.3,4.03498832]
[1723887892596,1.105,2601.4,2601.3,3.42799064]
[1723887892798,1.105,2601.4,2601.3,4.03498848]
[1723887895904,1.105,2601.4,2601.3,3.42801796]
[1723887896095,1.542,2601.4,2601.3,4.03502012]
[1723887896401,1.4632,2601.4,2601.3,4.03502012]
[1723887898000,6.6822397,2601.4,2601.3,4.03502012]
[1723887900301,6.6822397,2601.4,2601.3,4.03502538]
[1723887901193,6.6822397,2601.4,2601.3,3.53780231]
[1723887901398,6.6822397,2601.4,2601.3,2.52917386]
[1723887901591,6.6822397,2601.4,2601.3,3.53781028]
[1723887902201,5.22457047,2601.4,2601.3,5.47631538]
[1723887902396,1.51256208,2601.4,2601.3,13.66619967]
[1723887902593,2.61756208,2601.5,2601.4,1.44123]
[1723887902897,2.61756208,2601.5,2601.4,6.33570589]
[1723887903097,2.61756208,2601.5,2601.4,14.02339258]
[1723887903293,2.61756208,2601.5,2601.4,10.17962651]
[1723887903502,2.61756208,2601.5,2601.4,10.78626286]
[1723887903696,2.61756208,2601.5,2601.4,8.77846083]
[1723887903893,2.61756208,2601.5,2601.4,10.78626286]
[1723887904092,2.61756208,2601.5,2601.4,8.77846083]
[1723887904298,2.61756208,2601.5,2601.4,10.78626286]
[1723887904606,2.61756208,2601.5,2601.4,8.77846083]
[1723887907000,1.105,2601.5,2601.4,10.78626286]
[1723887907200,1.105,2601.5,2601.4,8.77846083]
[1723887907704,1.105,2601.5,2601.4,14.63007439]
[1723887907902,1.105,2601.5,2601.4,14.63005958]
[1723887908408,1.105,2601.5,2601.4,8.77846083]
[1723887909806,1.105,2601.5,2601.4,8.17153279]
[1723887910905,2.61756208,2601.5,2601.4,4.04025995]
[1723887911404,1.105,2601.5,2601.4,1.61467681]
[1723887911805,3.12177047,2601.5,2601.4,1.61467681]
[1723887912116,1.51193001,2601.5,2601.4,3.53683428]
[1723887912406,2.61693001,2601.5,2601.4,2.11838882]
[1723887912609,2.61693001,2601.5,2601.4,4.04033671]
[1723887913311,1.105,2601.5,2601.4,7.88433671]
[1723887914802,2.61693001,2601.5,2601.4,7.88437574]
[1723887915003,2.61693001,2601.5,2601.4,2.52891858]
[1723887915308,2.61693001,2601.5,2601.4,3.53671814]
[1723887915510,3.12177047,2601.5,2601.4,1.61473122]
[1723887915814,3.12177047,2601.5,2601.4,0.60693166]
[1723887916007,4.56295047,2601.5,2601.4,0.60693166]
[1723887916206,4.56295047,2601.5,2601.3,1.00779956]
[1723887916404,4.56295047,2601.5,2601.4,0.60699549]
[1723887916802,4.56295047,2601.5,2601.3,1.00779956]
[1723887917109,4.56295047,2601.5,2601.4,0.60699925]
[1723887917805,3.12177047,2601.5,2601.4,0.60699925]
[1723887919906,3.12177047,2601.5,2601.4,1.61479881]
[1723887919907,1.105,2601.5,2601.4,1.61479881]
[1723887920518,1.105,2601.5,2601.4,1.61479238]
[1723887921707,4.56295047,2601.5,2601.4,0.60699282]
[1723887922018,8.40695047,2601.5,2601.4,0.60699282]
[1723887922413,6.39018,2601.5,2601.4,0.60699282]
[1723887922610,8.40554722,2601.5,2601.4,0.60699282]
[1723887923313,1.44129,2601.3,2601.2,1.36645432]
[1723887923512,7.76932495,2601.3,2601.2,1.97349405]
[1723887923814,7.76932495,2601.3,2601.2,0.96569449]
[1723887924209,6.32803495,2601.3,2601.2,0.96569449]
[1723887924413,6.32803495,2601.3,2601.2,1.31919449]
[1723887924715,6.32803495,2601.3,2601.2,1.71995432]
[1723887924716,2.61620597,2601.3,2601.2,1.71995432]
[1723887924918,2.61620597,2601.3,2601.2,2.32698943]
[1723887925113,2.61620597,2601.3,2601.2,1.36645432]
[1723887925319,2.61620597,2601.3,2601.2,1.97345436]
[1723887925818,5.82400597,2601.3,2601.2,1.97345436]
[1723887926014,6.32803495,2601.3,2601.2,0.9656548]
[1723887927415,6.32803495,2601.3,2601.2,0.35865476]
[1723887928618,7.76932495,2601.3,2601.2,0.35865476]
[1723887928817,7.84782495,2601.3,2601.2,0.35865476]
[1723887930511,5.83259,2601.3,2601.2,0.35865476]
[1723887931410,5.75409,2601.3,2601.2,0.35865476]
[1723887932326,6.11319,2601.3,2601.2,0.35865476]
[1723887932517,8.1268418,2601.3,2601.2,0.35865476]
[1723887933024,6.11319,2601.3,2601.2,0.35865476]
[1723887933224,8.12667203,2601.3,2601.2,0.35865476]
[1723887936723,8.12667203,2601.3,2601.2,0.00285476]
[1723887936920,6.11319,2601.3,2601.2,0.00285476]
[1723887937123,8.20517372,2601.3,2601.2,0.00285476]
[1723887937522,8.12664512,2601.3,2601.2,0.00285476]
[1723887937824,6.11319,2601.3,2601.2,0.00285476]
[1723887938014,8.12666934,2601.3,2601.2,0.00285476]
[1723887938425,6.11319,2601.3,2601.2,0.00285476]
[1723887938615,8.61924966,2601.3,2601.2,0.00285476]
[1723887938816,8.61924966,2601.3,2601.0,0.3482]
[1723887938817,1.4414,2601.1,2601.0,0.3482]
[1723887939020,4.55961217,2601.1,2601.0,0.3482]
[1723887939825,4.55961217,2601.1,2601.0,0.35279518]
[1723887940023,4.55961217,2601.1,2601.0,0.00459518]
[1723887941816,13.90771521,2601.1,2600.7,0.3594]
[1723887942124,1.44171,2600.6,2600.4,0.3597]
[1723887942330,4.6783,2600.5,2600.4,0.3597]
[1723887942823,4.6818889,2600.5,2600.4,0.36415326]
[1723887943223,6.1236189,2600.5,2600.4,0.36415326]
[1723887948020,3.5768889,2600.5,2600.4,0.36415326]
[1723887948216,4.3163889,2600.5,2600.4,0.36415326]
[1723887949623,5.7581189,2600.5,2600.4,0.36415326]
[1723887949828,5.7581189,2600.5,2600.4,0.00445326]
[1723887950028,5.7581189,2600.5,2600.4,1e-08]
[1723887950229,8.1619889,2600.5,2599.8,1.0893]
[1723887950430,1.105,2599.9,2599.8,1.0893]
[1723887950632,1.105,2599.9,2599.8,0.7391]
[1723887951122,2.54707,2599.9,2599.8,0.74247612]
[1723887951431,1.468,2599.9,2599.8,0.74247612]
[1723887951821,6.75647,2599.9,2599.8,0.74247612]
[1723887952025,1.468,2599.9,2599.8,0.74247612]
[1723887952327,1.105,2599.9,2599.8,0.74247612]
[1723887955335,3.5708,2600.1,2599.8,0.74247612]
[1723887955533,6.73565671,2600.4,2599.9,0.3723]
[1723887955722,1.105,2600.0,2599.9,0.3723]
[1723887956032,1.105,2600.1,2600.0,1.44201]
[1723887956228,1.105,2600.1,2600.0,5.28841]
[1723887956436,1.105,2600.1,2600.0,3.8464]
[1723887956633,1.105,2600.1,2599.9,1.81434]
[1723887956940,1.105,2600.1,2599.9,5.66074]
[1723887957125,1.105,2600.1,2600.0,1.44201]
[1723887957528,1.105,2600.1,2600.0,5.28841]